Cogmind - Beta 12 @@@ ROGUE MODE // 2023.05.13 @ 16:35:08 Player: Mr Goldstein Result: Core destroyed Performance ------------- Evolutions (0) 0 Regions Visited (2) 400 Robots Destroyed (2) 10 Value Destroyed (81) 81 Prototype IDs (0) 0 Alien Tech Used (0) 0 Bonus (0) 0 TOTAL SCORE: 491 Bonus ------- None Cogmind --------- Core Integrity 0/250 Matter 240/300 Energy 100/100 System Corruption 0% Temperature Cool (0) Movement Core (50) Location -10/Mines Parts ------- > --- POWER (1) -------- (None) > --- PROPULSION (2) --- (None) > --- UTILITY (2) ------ (None) > --- WEAPON (2) ------- (None) > --- INVENTORY (5) ---- Rocket Launcher Peak State ------------ > --- POWER ------------ (None) > --- PROPULSION ------- (None) > --- UTILITY ---------- (None) > --- WEAPON ----------- Rocket Launcher > --- INVENTORY -------- (None) [Rating: 2] Favorites ----------- Power None Propulsion None Utility None Weapon Rocket Launcher Launcher Rocket Launcher Build | -11 -10 -10 ------- Run | Jun Mat Min Slots Evolved . | . . . Power . | . . . Propulsion . | . . . Utility . | . . . Weapon . | . . . Parts Attached 1 | . . 1 Power . | . . . Engine . | . . . Core . | . . . Reactor . | . . . Propulsion . | . . . Treads . | . . . Leg . | . . . Wheel . | . . . Hover . | . . . Flight . | . . . Utility . | . . . Device . | . . . Storage . | . . . Processor . | . . . Hackware . | . . . Protection . | . . . Artifact . | . . . Weapon 1 | . . 1 Energy Gun . | . . . Energy Cannon . | . . . Ballistic Gun . | . . . Ballistic Cannon . | . . . Launcher 1 | . . 1 Special Weapon . | . . . Impact Weapon . | . . . Slashing Weapon . | . . . Piercing Weapon . | . . . Special Melee Weapon . | . . . Unidentified Prototypes . | . . . Parts Lost . | . . . Power . | . . . Propulsion . | . . . Utility . | . . . Weapon . | . . . Highest Loss Streak . | . . . To Critical Strikes . | . . . Average Slot Usage (%) . | . . 1 Naked Turns 195 | . 106 89 Heaviest Build . | . . . Greatest Support 3 | 3 3 3 Greatest Overweight (x) . | . . . Average Overweight (x) . | . . . Largest Inventory Capacity 5 | 5 5 5 Average Capacity 5 | 5 5 5 Most Carried 1 | . . 1 Average Carried . | . . . Final Capacity 5 | 5 5 5 Final Carried 1 | . . 1 Class Distribution -------------------- 100% | Mutant Dominant Class ---------------- Mutant | -10/Materials Mutant | -10/Mines Resources | -11 -10 -10 ----------- Run | Jun Mat Min Matter Collected 198 | 198 . . Remotely . | . . . Salvage Created 30 | . . 30 Parts 3 | . . 3 Haulers Intercepted . | . . . Recyclers Shooed 1 | 1 . . Parts Field Recycled . | . . . Retrieved Matter . | . . . Parts Self-Destructed . | . . . Prevented . | . . . Kills | -11 -10 -10 ------- Run | Jun Mat Min Combat Hostiles Destroyed 2 | . . 2 AOE 2 | . . 2 Classes Destroyed 1 | . . 1 Grunt 2 | . . 2 Best Kill Streak 2 | . . 2 Combat Bots Only 2 | . . 2 Max Kills in Single Turn 1 | . . 1 Gunslinging . | . . . Exploded 1 | . . 1 Melee . | . . . Uniques/NPCs Destroyed . | . . . Combat | -11 -10 -10 -------- Run | Jun Mat Min Damage Taken 285 | 1 174 110 Core 256 | 1 174 81 Absorbed by Shields . | . . . Core Remaining (%) 99 | 99 . . Volleys Fired 5 | . . 5 Largest 1 | . . 1 Hottest 33 | . . 33 Shots Fired 5 | . . 5 Gun . | . . . Cannon . | . . . Launcher 5 | . . 5 Special . | . . . Kinetic . | . . . Thermal . | . . . Explosive 5 | . . 5 Electromagnetic . | . . . Robot Hit Streak 2 | . . 2 Robot Miss Streak 2 | . . 2 Penetration Max . | . . . Secondary Targets . | . . . Shots Hit Robots 3 | . . 3 Core Hits 7 | . 1 6 Critical Kills . | . . . Critical Parts Destroyed . | . . . Critical Strikes . | . . . Melee Attacks . | . . . Impact . | . . . Slashing . | . . . Piercing . | . . . Sneak Attacks . | . . . Combat Hostiles . | . . . Follow-up Attacks . | . . . Damage Inflicted 237 | 2 39 196 Guns . | . . . Cannons . | . . . Explosions 177 | . . 177 Melee . | . . . Ramming 60 | 2 39 19 Kinetic . | . . . Thermal . | . . . Explosive 177 | . . 177 Electromagnetic . | . . . Impact . | . . . Slashing . | . . . Piercing . | . . . Highest Corruption . | . . . Average Corruption . | . . . Corruption Purged . | . . . Corruption Blocked . | . . . Overload Shots . | . . . Overflow Damage 2 | . . 2 Projectiles . | . . . Explosions 2 | . . 2 Melee . | . . . Knockbacks . | . . . Impact . | . . . Kinetic . | . . . Secondary . | . . . Self-Inflicted Damage 49 | 1 19 29 Shots 1 | . . 1 Rammed 10 | 1 6 3 Targets Rammed 10 | 1 6 3 Kicked . | . . . Crushed . | . . . Highest Temperature 18 | . . 18 Average Temperature 11 | . . 11 Received Heat Transfer 90 | . . 90 Siege Activations . | . . . Robots Corrupted . | . . . Combat Hostiles . | . . . Parts Fried . | . . . Impact Corruptions . | . . . Robots Melted . | . . . Combat Hostiles . | . . . Parts Melted . | . . . Heat Transferred . | . . . Parts Sabotaged . | . . . Parts Stolen . | . . . Parts Stripped . | . . . Power Chain Reactions . | . . . Missiles Intercepted . | . . . Alert | -11 -10 -10 ------- Run | Jun Mat Min Peak Influence 157 | . 150 157 Initial 58 | . . 58 Average 84 | . 45 134 Maximum Alert Level . | . . . Low Security (%) 100 | 100 100 100 Level 1 . | . . . Level 2 . | . . . Level 3 . | . . . Level 4 . | . . . Level 5 . | . . . High Security . | . . . Max Security . | . . . Squads Dispatched . | . . . Investigation . | . . . Extermination . | . . . Reinforcement . | . . . Assault . | . . . Garrison . | . . . Intercept . | . . . Searches Triggered . | . . . Construction Impeded . | . . . Haulers Reinforced . | . . . Active Scanning Responses . | . . . Cargo Convoy Interrupts . | . . . Stealth | -11 -10 -10 --------- Run | Jun Mat Min Distress Signals . | . . . Communications Jammed . | . . . Distress Signals . | . . . Times Spotted 12 | . 8 4 Peak Tracking Total 4 | . 4 2 Tactical Retreats 2 | . 2 . Traps | -11 -10 -10 ------- Run | Jun Mat Min Traps Triggered 1 | . 1 . Indirectly . | . . . Trap Hack Attempts . | . . . Triggered . | . . . Disarmed . | . . . Reprogrammed . | . . . Reused . | . . . Traps Extracted . | . . . Installed . | . . . Triggered . | . . . Machines | -11 -10 -10 ---------- Run | Jun Mat Min Machines Disabled . | . . . Max in Single Turn . | . . . Machines Repaired . | . . . Machines Sabotaged . | . . . Overloaded Fab Kills . | . . . Hacking | -11 -10 -10 --------- Run | Jun Mat Min Machines Accessed . | . . . Terminals . | . . . Fabricators . | . . . Repair Stations . | . . . Recycling Units . | . . . Scanalyzers . | . . . Garrison Access . | . . . Total Hacks . | . . . Successful . | . . . Failed . | . . . Catastrophic . | . . . Database Lockouts . | . . . Manual . | . . . Terminals . | . . . Fabricators . | . . . Repair Stations . | . . . Recycling Units . | . . . Scanalyzers . | . . . Garrison Access . | . . . Terminal Hacks . | . . . Fabricator Hacks . | . . . Repair Station Hacks . | . . . Recycling Unit Hacks . | . . . Scanalyzer . | . . . Garrison Access Hacks . | . . . Unauthorized Hacks . | . . . Terminals . | . . . Fabricators . | . . . Repair Stations . | . . . Recycling Units . | . . . Scanalyzers . | . . . Garrison Access . | . . . Data Cores Recovered . | . . . Used . | . . . Hacking Detections . | . . . Full Trace Events . | . . . Feedback Events . | . . . Feedback Blocked . | . . . Robot Schematics Acquired . | . . . Robots Built . | . . . Authchips . | . . . Time . | . . . Total Robot Build Rating . | . . . Part Schematics Acquired . | . . . Parts Built . | . . . Authchips . | . . . Time . | . . . Total Part Build Rating . | . . . Parts Repaired . | . . . Time . | . . . Parts Recycled . | . . . Recycled Matter . | . . . Retrieved Matter . | . . . Retrieved Components . | . . . Parts Scanalyzed . | . . . Part Schematics Acquired . | . . . Parts Damaged . | . . . Bothacking | -11 -10 -10 ------------ Run | Jun Mat Min Used RIF Installer . | . . . Robots Hacked . | . . . Non-combat . | . . . Combat . | . . . Robot Hacks Applied . | . . . Relay Couplers Released . | . . . Fabnet Peak Effective % . | . . . Robots Rewired . | . . . Allies Hacked . | . . . Hacks Repelled . | . . . Allies | -11 -10 -10 -------- Run | Jun Mat Min Total Allies . | . . . Largest Group . | . . . Highest-Rated Group . | . . . Highest-Rated Ally . | . . . Total Orders . | . . . Ally Attacks . | . . . Total Damage . | . . . Kills . | . . . Allies Corrupted . | . . . Allies Melted . | . . . Intel | -11 -10 -10 ------- Run | Jun Mat Min Robot Analysis Total . | . . . Derelict Logs Recovered . | . . . Drone Launches . | . . . Drone Recoveries . | . . . Exploration | -11 -10 -10 ------------- Run | Jun Mat Min Turns Passed 216 | 10 106 100 Spaces Moved 387 | 18 199 170 Core 387 | 18 199 170 Treads . | . . . Legs . | . . . Wheels . | . . . Hover . | . . . Flight . | . . . Fastest Speed 50 | 50 50 50 Average Speed 50 | 50 50 50 Slowest Speed 50 | 50 50 50 Overloaded Moves . | . . . Propulsion Burnouts . | . . . Robots Hopped . | . . . Cave-ins Triggered . | . . . Exploration Rate (%) 33 | 3 49 49 Regions Visited 2 Branch Regions 1 Pre-discovered Areas . | . . . Known Exits Taken . | . . . Unknown Exits Taken 2 | 1 1 . Scrap Searched . | . . . Spaces Dug . | . . . Terrain Destroyed 35 | . . 35 Melee . | . . . Projectile . | . . . AOE 35 | . . 35 Terrain Rammed . | . . . Walls Destroyed . | . . . Machines Disabled . | . . . Actions | -11 -10 -10 --------- Run | Jun Mat Min Total 401 | 18 204 179 Wait . | . . . Move 385 | 17 198 170 Hop . | . . . Pick Up . | . . . Fast Attach 1 | . . 1 Attach . | . . . Detach 1 | . . 1 Swap . | . . . Drop . | . . . Fire 5 | . . 5 Melee . | . . . Ram 9 | 1 6 2 Kick . | . . . Crush . | . . . Escape Stasis . | . . . Rewire . | . . . Trap . | . . . Miscellaneous . | . . . Route ------- -11/Junkyard -10/Materials (discovered 4 exits: [*Mat x3] / [*Min]) -10/Mines History --------- Turn | Location | Event 2 | -11/Junkyard | Discovered new exit (range 16) 11 | -11/Junkyard | Entered Materials 36 | -10/Materials | Discovered new exit (range 3) 60 | -10/Materials | Discovered new exit (range 16) 78 | -10/Materials | Discovered new exit (range 6) 92 | -10/Materials | Core integrity fell below 50% 111 | -10/Materials | Discovered new exit (range 12) 117 | -10/Materials | Entered Mines 124 | -10/Mines | Received a Rocket Launcher from a helpful Derelict 135 | -10/Mines | Core integrity fell below 20% 217 | -10/Mines | Core destroyed Last Messages --------------- 00120_ YM-WLV(g): "Pshh... whatever." 00121_ YM-WLV(g): "Everyone knows a good old rocket launcher goes a long way." 00122_ YM-WLV(g): "Need to get rid of a swarm? Done. Need a big hole in the wall? Done." 00123_ YM-WLV(g): "Need a small hole in the wall? Leave that to the mining laser wimps, I say!" 00124_ YM-WLV(g): "Would you like a rocket launcher? I know I would if I were you, so I'm going to lend you mine." 00124_ YM-WLV(g) slips back into the shadows. 00125_ Acquired Rocket Launcher. 00126_ G-34 Mercenary destroyed. 00128_ Destroyed Lgt. Nuclear Core. 00130_ Critical hit (Burn: +37). 00134_ G-47 Trooper destroyed. 00141_ The unstable cave ceiling collapses. 00190_ Critical hit (Burn: +37). 00208_ K-01 Serf collects debris. 00212_ Slammed into R-06 Scavenger. 00217_ Destabilizing: Core damaged (-10). Map ----- +----------------------------------------------------+ | | | | | | | | | ?????????????????????????????????????????????????? | | ?????????????????????????????????????????????????? | | ?????????????????????????????????????????????????? | | #####????????????????????????????????##??????????? | | " "##?????????????????????????###### #??????????? | | ! !!#????????????????????????## # #??????????? | | ! [!#???????????????????????## #??????????? | | ######??????????????????## #???"" "???? | | #//### #########??????????# #???"" "???? | | ############ #??""" "???? | | ## #### #? ????? | | ##### #??############### ### """?????? | | ##???# #????????????????# % # """?"???? | | ##????# #??????????????#### #?""? ""??? | | ####### #??????????????# ##??? ?? | | #####????????### ## #??? ?? | | # ######## #????????# ### #?? ? | | ####??????##### #????????# #### ## | | ??????????????# #????????# #??# #?????? | | ??????????????# #????????# #?## #?????? | | ??????????????# #????##### ### # ### ?? | | ??????????????# #????# @ ## ######### ###? | | ????????????### #????# ##r### #?????? | | ???????????## ##???# ?# #?## #?????? | | ???????????# #???# ?# #??### #?????? | | ???????????# #??## ## #????## ####?????? | | ??????????## #?## ##????# ##????????? | | ?????????## ##?# #????## #?????????? | | ?????????# ##??# ##????## #?????????? | | ?????????# ##???## ##????## ##?????????? | | ?????????# ##?????### ##?????###??????????? | | ????????## #????????## #??????????????????? | | ???????## #????????## #??????????????????? | | ??????## #??????### ##??????????????????? | | ??????# ##????## ##???????????????????? | | ??????# #???## ##????????????????????? | | ?????## #??## ##????????????????????? | | ????## #### ##???????????????????? | | ???## ## ####????????????????? | | ??## #????????????????? | | ??# #???????????????? | | ?## """ #??????????????? | | ?# ## ### """ ?????????????? | | ## ########?## """ ????????????? | | # ##????????# ## ????????????? | | ##???????# ## ####?? ?????????????? | +----------------------------------------------------+ Best States ------------- Heat Dissipation 25 Energy Generation 5 Energy Capacity 100 Matter Stores 300 Matter Capacity 300 Sight Range 16 Terrain Scan Density 10 Evasion (%) 50 Item Schematics ----------------- None Robot Schematics ------------------ None Fabricated ------------ Nothing Alien Tech Used ----------------- None Achievements -------------- None Challenges ------------ None Game ------ Seed ProtonPowerMicroactuators Manual? 0 Play Time 00:02:37 Cumulative 204.0 hours Start 2023.05.13 @ 16:33:20 End 2023.05.13 @ 16:35:08 Sessions 1 Manual Loads 0 Difficulty Rogue Special Mode None Game No. 576 Rogue 576 Adventurer 0 Explorer 0 Win Type - Total 9 Types 7/0/1/1/0/0/0/0/0 Lore% 80 Gallery% 78 Achievement% 71 Wizard Run 0 Options --------- ASCII 0 Keyboard 0 Movement Numpad Keybinds 0 Fullscreen 1 Font 16/SmallcapsGlow Map View 75x55 Tactical HUD 1 Map Filters NONE Filters NONE Steam 1 RUN: ed9b50ac-bd72-4d06-ab8c-b154bef94d51